bitfinex-derivatives/quotes_ETHF0:USTF0_20250331
["timestamp","ask_amount","ask_price","bid_price","bid_amount"]
[1743382789232,0.00839866,1785.8,1785.7,2.94029]
[1743382789433,6.19253,1786.2,1786.0,1.11988]
[1743382789731,1.11989,1786.1,1785.9,5.37395]
[1743382789930,2.98479,1786.1,1785.9,1.11995]
[1743382790135,2.98479,1786.1,1786.0,1.7703]
[1743382790333,1.8649,1786.1,1786.0,2.89021]
[1743382790935,2.98474,1786.1,1786.0,1.7703]
[1743382791433,1.11991,1786.0,1785.9,0.00839866]
[1743382791625,7.80141,1786.0,1785.9,0.00839866]
[1743382791831,9.63901,1786.0,1785.9,0.00839866]
[1743382792629,9.62901,1786.0,1785.9,0.00839866]
[1743382794930,7.88451,1786.0,1785.9,0.00839866]
[1743382795135,6.04691,1786.0,1785.9,0.00839866]
[1743382795534,6.04691,1786.0,1785.9,1.71059866]
[1743382797038,6.04691,1786.0,1785.9,2.83056866]
[1743382797235,3.2078,1786.0,1785.9,2.83056866]
[1743382797837,1.11986,1786.1,1785.9,2.83056866]
[1743382798035,2.83920866,1786.2,1786.0,4.56277]
[1743382798244,1.12820866,1786.2,1786.1,1.6849]
[1743382798634,2.83920866,1786.2,1786.1,1.6849]
[1743382799041,1.71939866,1786.2,1786.1,2.80474]
[1743382799345,0.00839866,1786.2,1786.1,2.80474]
[1743382799543,0.00839866,1786.2,1786.1,6.01254]
[1743382799844,0.00839866,1786.2,1786.1,10.26354]
[1743382800232,3.2078,1786.5,1786.1,10.26354]
[1743382800539,4.32713,1787.0,1786.4,3.2078]
[1743382800740,3.2078,1787.0,1786.5,9.7127]
[1743382800937,1.11947,1786.7,1786.6,1.8622]
[1743382801145,4.32724,1786.8,1786.6,1.8622]
[1743382801337,1.11947,1786.7,1786.6,1.8622]
[1743382801842,1.11956,1786.6,1786.3,5.37068]
[1743382802142,4.32739,1786.5,1786.4,1.8622]
[1743382802343,3.2078,1786.5,1786.4,1.8622]
[1743382802646,3.2078,1786.5,1786.4,2.98185]
[1743382803548,5.0376,1786.5,1786.4,1.8622]
[1743382803748,6.15719,1786.5,1786.4,1.8622]
[1743382803952,6.7722,1786.5,1786.4,1.8622]
[1743382804452,7.89179,1786.5,1786.4,1.8622]
[1743382804844,7.89179,1786.5,1785.9,0.00839866]
[1743382804845,6.7722,1786.5,1785.9,0.00839866]
[1743382805151,4.32771,1786.0,1785.9,1.75999866]
[1743382805547,4.32771,1786.0,1785.9,0.00839866]
[1743382805735,4.32771,1786.0,1785.0,2.80126]
[1743382805736,1.12009,1785.7,1785.6,1.7464]
[1743382805939,1.12026,1785.5,1785.3,1.8529]
[1743382806144,1.1203,1785.4,1785.2,1.7464]
[1743382806348,3.2078,1785.3,1785.0,1.8529]
[1743382806549,2.92843,1785.2,1785.0,3.6077]
[1743382806744,1.12047,1785.1,1785.0,1.7548]
[1743382806946,2.92847,1785.1,1785.0,1.7548]
[1743382807249,6.13627,1785.1,1785.0,1.7548]
[1743382807548,1.12053,1785.0,1784.9,0.00839866]
[1743382807748,2.92853,1785.0,1784.9,0.00839866]
[1743382809749,4.308,1785.0,1784.4,3.2078]
[1743382809950,3.2078,1784.6,1784.4,1.12089]
[1743382810147,3.2078,1784.6,1784.5,1.8633]
[1743382810351,6.05788,1784.6,1784.5,1.8633]
[1743382810747,1.12088,1784.5,1784.2,8.57682]
[1743382810949,1.7293,1784.5,1784.4,0.00839866]
[1743382811549,2.85015,1784.5,1784.4,0.00839866]
[1743382812842,5.35015,1784.5,1784.4,0.00839866]
[1743382813847,1.12118,1784.0,1783.7,1.12133]
[1743382814047,1.12118,1784.0,1783.8,1.12129]
[1743382814048,1.8155,1783.9,1783.8,1.12129]
[1743382814753,1.8155,1783.9,1783.7,2.98071]
[1743382814954,2.93673,1783.9,1783.7,2.98910866]
[1743382815149,1.8155,1783.9,1783.7,2.98911866]
[1743382815548,2.93676,1783.9,1783.7,1.86779866]
[1743382815854,1.8155,1783.9,1783.8,1.12129]
[1743382816050,5.0233,1783.9,1783.7,1.86779866]
[1743382816651,1.12129,1783.8,1783.7,0.00839866]
[1743382816852,2.86909,1783.8,1783.7,0.00839866]
[1743382818454,5.36909,1783.8,1783.7,0.00839866]
[1743382818848,4.70029,1783.8,1783.7,0.00839866]
[1743382819053,8.94829,1783.8,1783.7,0.00839866]
[1743382821046,8.94829,1783.8,1783.7,0.00939866]
[1743382822050,0.00839866,1784.0,1783.9,1.12122]
[1743382822445,5.0111,1784.7,1784.1,2.80275]
[1743382822652,3.2078,1784.7,1784.5,1.12084]
[1743382822855,4.32854,1784.7,1784.6,1.6837]
[1743382824662,3.2078,1784.7,1784.6,2.80448]
[1743382824864,0.00839866,1784.8,1784.6,1.6837]
[1743382825156,0.00839866,1784.8,1784.6,1.12078]
[1743382825459,4.32855,1784.7,1784.5,5.36983]
[1743382825655,3.2078,1784.7,1784.5,5.36983]
[1743382825962,1.86659866,1784.8,1784.6,1.12075]
[1743382826162,0.00839866,1784.8,1784.7,1.12072]
[1743382827061,0.00839866,1784.8,1784.6,1.12074]
[1743382827758,1.12905866,1784.8,1784.6,1.12074]
[1743382828458,1.12905866,1784.8,1784.5,5.36981]
[1743382828762,1.12905866,1784.8,1784.2,1.7588]
[1743382828763,3.2078,1784.7,1784.2,1.7588]
[1743382828963,3.2078,1784.7,1784.3,1.12094]
[1743382828964,1.12089,1784.5,1784.3,1.12094]
[1743382829362,1.12096,1784.4,1784.2,2.87983]
[1743382829553,1.12113,1784.1,1783.9,61.86822]
[1743382829752,1.12119,1784.0,1783.8,3.4789]
[1743382829958,4.32894,1784.1,1783.8,8.84718]
[1743382830362,3.2078,1784.3,1784.0,1.12116]
[1743382830561,3.2078,1784.1,1783.8,3.4789]
[1743382830866,1.12106,1784.2,1784.0,1.12114]
[1743382831058,1.1211,1784.1,1783.9,1.12117]
[1743382831259,1.1211,1784.1,1783.8,1.12124]
[1743382831560,3.2078,1784.0,1783.7,4.92389866]
[1743382831758,1.12129,1783.8,1783.7,0.00939866]
[1743382831960,1.12127,1783.9,1783.7,0.00939866]
[1743382832363,1.12129,1783.8,1783.7,0.00939866]
[1743382833463,4.32909,1783.8,1783.7,0.00939866]
[1743382833665,3.2078,1783.8,1783.7,0.00939866]
[1743382833869,3.2078,1784.0,1783.7,0.00939866]
[1743382834175,3.2078,1784.2,1784.0,1.12111]
[1743382834362,4.32884,1784.2,1783.8,5.9401]
[1743382834566,4.32887,1784.2,1783.9,1.12118]
[1743382835268,4.9688,1784.4,1783.8,9.1479]
[1743382835570,1.121,1784.3,1784.0,1.12113]
[1743382835771,1.12104,1784.2,1784.0,1.12113]
[1743382835967,1.12099,1784.3,1784.1,1.12106]
[1743382836266,1.12099,1784.3,1784.1,4.246]
[1743382836661,1.12099,1784.3,1784.1,5.36707]
[1743382836858,4.32875,1784.4,1784.2,1.12103]
[1743382837261,4.32875,1784.4,1784.1,5.36706]
[1743382837456,1.12097,1784.3,1784.2,1.709]
[1743382837662,3.2078,1784.4,1784.0,4.246]
[1743382837858,3.2078,1784.4,1784.1,1.709]
[1743382837859,1.7687,1784.3,1784.1,1.709]
[1743382838065,1.12104,1784.2,1784.1,1.709]
[1743382838465,2.88971,1784.3,1784.1,2.83009]
[1743382838670,1.12104,1784.2,1784.1,1.709]
[1743382838869,1.12104,1784.2,1784.0,5.36716]
[1743382839067,1.7687,1784.3,1784.0,4.246]
[1743382839366,1.12109,1784.2,1784.0,4.246]
[1743382839572,2.88971,1784.3,1784.1,1.1211]
[1743382839873,1.12101,1784.3,1784.0,5.36712]
[1743382840170,3.2078,1784.4,1784.0,5.36712]
[1743382840370,1.1211,1784.1,1783.9,2.97181]
[1743382840671,1.12116,1784.0,1783.9,1.8506]
[1743382840866,4.32886,1784.2,1784.0,1.12116]
[1743382841064,3.2078,1784.2,1784.0,1.12116]
[1743382841465,3.2078,1784.2,1784.1,1.1211]
[1743382841768,3.21619866,1784.8,1784.7,1.12072]
[1743382842068,4.9294,1785.3,1784.5,4.245]
[1743382842263,3.2078,1785.0,1784.6,3.5504]
[1743382842469,1.12062,1784.9,1784.6,4.67113]
[1743382842671,3.2078,1784.8,1784.3,4.8058]
[1743382842866,4.9481,1784.8,1784.3,4.245]
[1743382843071,4.9481,1784.8,1784.5,1.12082]
[1743382843261,6.06882,1784.8,1784.5,1.12082]
[1743382843469,1.12911866,1784.7,1784.5,1.12082]
[1743382843662,1.12911866,1784.7,1784.4,1.12927866]
[1743382843864,0.00839866,1784.7,1784.4,0.00839866]
[1743382844067,1.12083,1784.6,1784.4,0.00839866]
[1743382844267,6.06893,1784.6,1784.4,0.00839866]
[1743382844463,2.86113,1784.6,1784.4,1.12929866]
[1743382844673,1.12085,1784.5,1784.4,0.00839866]
[1743382845174,2.86115,1784.5,1784.4,0.00839866]
[1743382845469,4.66585,1784.5,1784.4,0.00839866]
[1743382845672,2.86115,1784.5,1784.4,0.00839866]
[1743382849171,1.12079,1784.6,1784.4,1.12930866]
[1743382849671,1.12085,1784.5,1784.4,1.76809866]
[1743382849877,1.12083,1784.6,1784.4,1.76809866]
[1743382850466,1.12085,1784.5,1784.4,1.76809866]
[1743382850975,1.12085,1784.5,1784.4,0.00839866]
[1743382852475,2.91755,1784.5,1784.4,0.00839866]
[1743382853773,1.1211,1784.1,1784.0,5.0]
[1743382854478,1.12105,1784.2,1784.0,6.12113]
[1743382854781,3.2078,1784.4,1784.0,6.12113]
[1743382854782,5.0045,1784.4,1784.0,5.0]
[1743382855284,2.91763,1784.4,1784.2,1.12102]
[1743382855471,2.91763,1784.4,1784.0,6.12111]
[1743382855472,1.7967,1784.4,1784.0,6.12111]
[1743382855678,1.12106,1784.2,1784.1,4.241]
[1743382855987,1.1211,1784.1,1784.0,5.0]
[1743382856692,4.3289,1784.1,1784.0,5.0]
[1743382856887,2.91166,1784.2,1784.0,6.12116]
[1743382857078,2.91166,1784.2,1784.0,6.12115]
[1743382857278,2.91168,1784.2,1784.0,5.0]
[1743382857480,2.91168,1784.2,1784.1,1.7274]
[1743382857676,4.32867,1784.5,1784.3,1.12097]
[1743382857882,1.12103,1784.3,1784.1,1.7274]
[1743382858287,2.95713,1784.3,1784.1,1.7274]
[1743382858585,2.9571,1784.3,1784.1,2.8485]
[1743382858784,2.94881,1784.6,1784.2,4.241]
[1743382858980,1.12088,1784.5,1784.3,1.12097]
[1743382859176,1.12088,1784.5,1784.4,1.7946]
[1743382859383,4.32868,1784.5,1784.4,1.7946]
[1743382859578,1.12097,1784.3,1784.2,4.241]
[1743382859779,1.12093,1784.4,1784.2,4.241]
[1743382860082,3.2078,1784.5,1784.3,1.7946]
[1743382860286,1.12081,1784.6,1784.4,1.1209]
[1743382860473,4.33696866,1784.7,1784.5,1.7946]
[1743382860675,0.00839866,1784.7,1784.6,1.12078]
[1743382861386,0.00839866,1784.7,1784.5,7.797]
[1743382861689,1.12078,1784.6,1784.5,7.797]
[1743382862781,0.00839866,1784.7,1784.3,58.3555]
[1743382862782,1.12091,1784.4,1784.3,58.3555]
[1743382862985,1.12091,1784.4,1784.3,6.0985]
[1743382863481,4.32867,1784.5,1784.3,7.21947]
[1743382863879,1.12087,1784.5,1784.3,7.21947]
[1743382864077,0.00839866,1784.7,1784.6,1.12078]
[1743382864289,19.17993865,1785.5,1784.9,1.12054]
[1743382864290,1.12049,1785.1,1784.9,1.12054]
[1743382864583,5.032,1785.2,1785.0,1.7108]
[1743382864791,3.2078,1785.2,1785.1,1.12047]
[1743382865183,3.2078,1785.2,1785.0,3.4085]
[1743382865487,4.32825,1785.2,1785.0,4.53740866]
[1743382865984,1.12047,1785.1,1785.0,1.71919866]
[1743382866188,3.2078,1785.2,1785.0,1.71919866]
[1743382866489,1.12047,1785.1,1785.0,1.71919866]
[1743382866885,3.2078,1785.2,1785.1,1.12047]
[1743382867189,4.32825,1785.2,1785.0,2.83970866]
[1743382867490,0.00839866,1785.3,1785.1,1.12047]
[1743382867690,1.12873866,1785.3,1785.2,1.8324]
[1743382867884,0.00839866,1785.3,1785.2,1.8324]
[1743382868286,2.91268,1785.8,1785.2,8.5714]
[1743382868493,19.17993865,1785.9,1785.8,1.12003]
[1743382868990,19.17993865,1785.9,1785.8,4.18003]
[1743382869190,19.17993865,1785.9,1785.8,9.44603]
[1743382869491,1.11978,1786.2,1785.9,1.11993]
[1743382869691,1.11978,1786.2,1786.0,4.238]
[1743382869983,3.2078,1786.3,1786.1,2.95223]
[1743382870187,1.11965,1786.4,1786.2,1.7364]
[1743382870584,22.38773865,1786.5,1786.2,2.85613]
[1743382870795,22.38773865,1786.5,1786.3,4.238]
[1743382870986,22.38773865,1786.5,1786.4,2.85605]
[1743382871284,19.17993865,1786.5,1786.4,2.85605]
[1743382871480,22.43051294,1786.7,1786.4,2.85605]
[1743382871481,1.11947,1786.7,1786.4,2.85605]
[1743382871696,4.3272,1786.8,1786.5,1.11955]
[1743382871885,4.3272,1786.8,1786.6,1.7364]
[1743382872093,2.93268,1786.9,1786.6,2.85592]
[1743382872388,4.9673,1787.2,1786.7,1.11941]
[1743382872588,1.11926,1787.1,1786.8,1.7364]
[1743382872784,4.9673,1787.2,1786.8,1.7364]
[1743382872983,4.9673,1787.2,1786.8,2.8558]
[1743382873191,3.2078,1787.2,1786.9,4.797]
[1743382873489,19.17993865,1787.3,1786.9,6.5577]
[1743382873684,20.29903865,1787.3,1787.0,1.11925]
[1743382873878,19.17993865,1787.3,1787.1,2.87989]
[1743382874084,19.17993865,1787.3,1787.2,7.11485]
[1743382875186,19.17993865,1787.3,1787.2,5.9957]
[1743382875393,4.32672,1787.6,1787.2,5.9957]
[1743382875585,1.11892,1787.6,1787.2,5.9957]
[1743382875988,1.11892,1787.6,1787.3,0.56]
[1743382876185,1.11897,1787.5,1787.4,1.687]
[1743382876385,1.11893,1787.6,1787.4,1.687]
[1743382876592,4.32672,1787.6,1787.4,1.687]
[1743382877295,1.11897,1787.5,1787.4,1.687]
[1743382877487,1.11903,1787.4,1787.2,1.687]
[1743382877684,4.32674,1787.6,1787.2,2.80612]
[1743382877889,1.7793,1787.5,1787.3,0.56]
[1743382878194,1.7793,1787.5,1787.1,4.233]
[1743382878490,3.2078,1787.4,1787.1,5.92]
[1743382878691,2.89843,1787.3,1787.1,5.92]
[1743382878893,1.11922,1787.1,1786.9,0.56]
[1743382879088,1.7793,1787.0,1786.9,0.56]
[1743382879493,1.7793,1787.0,1786.9,2.4036]
[1743382879793,3.2078,1787.2,1786.9,2.4036]
[1743382880093,1.11917,1787.2,1786.9,2.4036]
[1743382880295,1.7759,1787.1,1786.9,2.4036]
[1743382880993,1.7759,1787.1,1786.9,3.52292]
[1743382881193,1.7759,1787.1,1786.9,2.4036]
[1743382881696,1.7759,1787.1,1786.9,6.0756]
[1743382881897,2.89516,1787.1,1786.9,6.0756]
[1743382882495,1.11928,1787.0,1786.9,6.0756]
[1743382882698,1.11928,1787.0,1786.9,7.19494]
[1743382882699,1.741,1787.0,1786.9,7.19494]
[1743382883093,4.32699,1787.2,1786.9,7.19494]
[1743382883293,3.2078,1787.2,1786.9,6.0756]
[1743382883495,3.2078,1787.2,1787.0,1.11928]
[1743382883691,3.2078,1787.2,1787.1,1.8435]
[1743382883891,4.9894,1787.5,1787.1,1.8435]
[1743382884189,6.1084,1787.5,1787.2,5.35013]
[1743382884402,6.1084,1787.5,1787.3,1.8435]
[1743382884793,4.9894,1787.5,1787.3,2.96256]
[1743382884997,1.11892,1787.6,1787.3,2.96256]
[1743382885198,3.2078,1787.5,1787.4,1.8435]
[1743382885895,4.32667,1787.7,1787.4,2.96253]
[1743382886196,3.2078,1787.7,1787.5,1.11896]
[1743382886401,3.2078,1787.7,1787.5,2.79726]
[1743382886593,4.32666,1787.7,1787.5,1.6783]
[1743382886795,3.2078,1788.1,1787.6,11.06046924]
[1743382887097,7.02562,1788.7,1787.6,11.06046924]
[1743382887098,1.11856,1788.2,1787.8,3.2078]
[1743382887294,1.11856,1788.2,1787.9,7.02697]
[1743382887501,3.2078,1788.3,1787.9,5.9083]
[1743382887699,3.2078,1788.3,1788.1,1.11857]
[1743382887905,3.2078,1788.3,1787.9,7.25627607]
[1743382888091,3.2078,1788.0,1787.8,0.00839866]
[1743382888296,1.11872,1787.9,1787.8,0.00839866]
[1743382889096,2.89622,1787.9,1787.8,0.00839866]
[1743382891202,1.7775,1787.9,1787.8,0.00839866]
[1743382891597,5.0184,1788.2,1787.8,0.00839866]
[1743382891904,4.64963,1788.2,1788.0,1.1186]
[1743382892094,4.64963,1788.2,1788.0,5.3466]
[1743382892296,1.7205,1788.2,1788.1,1.11859]
[1743382892596,1.7205,1788.2,1788.1,2.88569]
[1743382892803,1.7205,1788.2,1788.1,1.7671]
[1743382893103,1.7205,1788.2,1788.1,2.88569]
[1743382893304,1.7205,1788.2,1788.1,1.7671]
[1743382893897,6.04683,1788.2,1788.1,1.7671]
[1743382894098,6.04683,1788.2,1788.0,5.34661]
[1743382894293,6.04683,1788.2,1787.8,0.00839866]
[1743382894294,1.11872,1787.9,1787.8,0.00839866]
[1743382894493,4.32652,1787.9,1787.8,0.00839866]
[1743382895594,5.0747,1788.1,1787.8,0.00839866]
[1743382895795,1.11869,1788.0,1787.9,4.227]
[1743382896202,5.0747,1788.1,1787.9,4.227]
[1743382896203,6.19331,1788.1,1787.9,4.227]
[1743382896593,6.19331,1788.1,1787.9,6.0489]
[1743382896796,1.11865,1788.0,1787.9,6.0489]
[1743382896996,5.0747,1788.1,1787.9,6.0489]
[1743382897202,2.98553,1788.1,1787.9,6.0489]
[1743382897400,6.19333,1788.1,1787.9,6.0489]
[1743382897602,1.7147,1788.0,1787.9,6.0489]
[1743382897805,1.7147,1788.0,1787.9,7.16762]
[1743382898100,1.7147,1788.0,1787.8,0.00839866]
[1743382898306,4.32652,1787.9,1787.8,0.00839866]
[1743382898803,4.32652,1787.9,1787.4,4.786]
[1743382898804,1.11897,1787.5,1787.4,4.226]
[1743382899104,1.11897,1787.5,1787.2,1.698]
[1743382899304,1.7147,1787.4,1787.3,4.226]
[1743382899505,3.2078,1787.6,1787.3,4.226]
[1743382899702,1.7147,1787.8,1787.5,1.11895]
[1743382899909,3.21619866,1787.6,1787.4,1.698]
[1743382900099,3.21619866,1787.6,1787.5,1.11897]
[1743382900407,1.72309866,1787.6,1787.5,1.11897]
[1743382900601,0.00839866,1787.6,1787.5,1.11897]
[1743382900804,3.2078,1788.1,1787.5,6.82677]
[1743382900997,3.2078,1788.1,1787.9,1.1187]
[1743382901198,1.8495,1788.0,1787.9,5.3447]
[1743382901598,3.2078,1788.1,1788.0,1.11865]
[1743382901800,4.9986,1788.3,1788.1,1.11856]
[1743382902106,5.58908,1789.4,1788.2,16.27177321]
[1743382902107,3.2078,1788.7,1788.2,16.27177321]
[1743382902404,3.2078,1789.2,1788.6,2.7957]
[1743382902710,1.7794,1789.5,1788.7,69.086]
[1743382902711,1.8495,1789.5,1788.7,69.086]
[1743382902905,1.11783,1789.4,1789.0,3.2078]
[1743382903105,2.96738,1789.3,1789.1,4.226]
[1743382903403,1.8495,1789.3,1789.1,4.226]
[1743382903601,3.2078,1789.6,1789.2,5.0137]
[1743382903804,5.0607,1789.8,1789.4,3.2078]
[1743382903996,3.2078,1789.8,1789.5,6.0299]
[1743382904203,4.32505,1790.3,1789.8,1.1175]
[1743382904396,5.0607,1790.3,1789.9,6.0299]
[1743382904598,1.11747,1789.9,1789.7,4.224]
[1743382904904,3.2078,1790.2,1789.7,4.224]
[1743382905105,1.11741,1790.0,1789.7,4.224]
[1743382905408,4.3251,1790.2,1789.8,1.11753]
[1743382905607,1.8292,1790.3,1789.9,1.11744]
[1743382905608,1.11724,1790.3,1789.9,1.11744]
[1743382905809,3.2078,1790.3,1790.0,4.224]
[1743382906002,16.85080092,1791.2,1790.8,1.11687]
[1743382906202,4.32467,1790.9,1790.7,4.224]
[1743382906405,1.8529,1790.8,1790.5,4.224]
[1743382906607,1.8529,1790.8,1790.7,3.2078]
[1743382906908,1.11697,1790.7,1790.6,0.00839866]
[1743382907206,1.11724,1790.3,1789.9,2.4337]
[1743382907407,1.11719,1790.4,1790.0,4.32518]
[1743382907603,1.7274,1790.3,1790.2,1.11728]
[1743382907906,2.79156,1791.3,1790.2,1.11728]
[1743382907907,4.32449,1791.2,1790.7,1.11691]
[1743382908110,4.32449,1791.2,1790.9,3.2078]
[1743382908111,0.00831817,1791.1,1790.9,3.2078]
[1743382908313,0.00831817,1791.1,1791.0,1.8745]
[1743382908507,1.73571817,1791.1,1791.0,2.99128]
[1743382908707,0.00831817,1791.1,1791.0,2.99128]
[1743382908905,0.00831817,1791.1,1790.9,3.2078]
[1743382909308,0.00831817,1791.1,1790.9,4.32463]
[1743382909611,0.00831817,1791.1,1791.0,1.11678]
[1743382909814,1.13742226,1791.6,1791.0,15.62194121]
[1743382909815,0.02099226,1791.6,1791.0,15.62194121]
[1743382910014,0.02099226,1791.6,1791.5,4.32427]
[1743382910208,0.45017216,1792.4,1791.5,4.32427]
[1743382910209,3.2078,1792.4,1791.5,7.9872]
[1743382910411,3.2078,1792.4,1791.7,3.2078]
[1743382910614,1.11631,1791.8,1791.5,13.2157986]
[1743382910804,3.2078,1792.1,1791.5,7.32220632]
[1743382911010,3.5195,1792.3,1791.5,7.32220632]
[1743382911011,1.7163,1792.0,1791.7,3.2078]
[1743382911306,1.7163,1792.0,1791.9,3.2078]
[1743382911503,1.7163,1792.0,1791.8,1.8179]
[1743382911812,6.04026,1792.0,1791.5,4.33260451]
[1743382912017,1.11632,1791.8,1791.5,3.21617451]
[1743382912314,2.83269,1791.7,1791.5,0.00837451]
[1743382912809,3.2078,1791.6,1790.9,3.7662]
[1743382913114,1.11678,1791.0,1790.9,3.2078]
[1743382913317,3.2078,1791.0,1790.2,5.0286]
[1743382913616,3.2078,1790.8,1790.2,3.2078]
[1743382913814,2.98687,1790.7,1790.3,1.11719]
[1743382914108,1.11706,1790.6,1790.3,0.00837451]
[1743382914315,1.87827451,1790.7,1790.3,0.00837451]
[1743382914614,1.11708,1790.6,1790.3,0.00837451]
[1743382914808,1.8699,1790.5,1790.3,0.00837451]
[1743382915011,1.11715,1790.4,1790.3,0.00837451]
[1743382916312,2.98702,1790.5,1790.3,0.00837451]
[1743382916613,0.00837451,1790.7,1790.6,1.11703]
[1743382916918,0.00837451,1790.7,1790.6,4.32483]
[1743382918918,1.11663,1791.3,1791.0,1.11676]
[1743382918919,1.11662,1791.3,1791.0,1.11676]
[1743382919116,1.8187,1791.2,1791.0,4.32456]
[1743382919312,2.93539,1791.2,1790.8,3.2078]
[1743382919612,2.93539,1791.2,1790.9,2.93062]
[1743382920211,1.8187,1791.2,1791.0,1.11678]
[1743382920419,2.93536,1791.2,1790.9,2.93061]
[1743382920612,1.8187,1791.2,1790.8,3.2078]
[1743382920914,5.0265,1791.2,1790.7,7.4258]
[1743382921108,6.14319,1791.2,1790.9,1.11683]
[1743382921311,1.11672,1791.1,1790.8,1.11685]
[1743382921510,1.8187,1791.0,1790.8,1.11687]
[1743382921818,1.8187,1791.0,1790.9,4.32464]
[1743382922112,3.2078,1791.4,1790.9,3.2078]
[1743382922312,4.71985,1791.6,1791.3,4.32437]
[1743382922520,1.8607,1791.5,1791.4,1.11653]
[1743382922771,1.8607,1791.5,1791.4,2.94443]
[1743382923225,7.4248,1792.1,1791.5,1.11647]
[1743382923416,1.8607,1791.9,1791.4,1.8279]
[1743382923717,1.11629,1791.8,1791.5,1.11647]
[1743382923919,1.8607,1791.9,1791.5,1.8279]
[1743382924113,6.899,1792.3,1792.0,1.11611]
[1743382924309,1.8607,1792.2,1792.0,1.11611]
[1743382924512,1.8607,1792.2,1791.8,3.2078]
[1743382924513,1.8607,1792.2,1792.1,1.11609]
[1743382924711,1.8607,1792.2,1792.1,3.2078]
[1743382924919,2.97673,1792.2,1792.1,3.2078]
[1743382925214,2.97673,1792.2,1791.9,9.2517]
[1743382925416,2.97676,1792.2,1791.9,10.36788]
[1743382925622,1.11612,1792.1,1791.9,9.2517]
[1743382925817,2.90682,1792.1,1791.9,10.36792]
[1743382926023,1.11594,1792.4,1792.1,1.11607]
[1743382926221,2.90668,1792.3,1792.0,1.67451]
[1743382926418,1.7907,1792.3,1792.1,2.92558]
[1743382926612,2.90668,1792.3,1792.1,2.92558]
[1743382926818,1.11603,1792.2,1792.1,1.8095]
[1743382927011,1.11609,1792.1,1791.9,8.4238]
[1743382927315,1.11601,1792.3,1791.9,8.4238]
[1743382927515,1.11595,1792.4,1791.9,8.4238]
[1743382927715,1.7907,1792.5,1792.1,3.2078]
[1743382927920,1.7809,1792.7,1792.3,3.2078]
[1743382928321,1.11591,1792.4,1792.3,3.21617451]
[1743382928522,1.11591,1792.4,1792.3,0.00837451]
[1743382928927,1.11616,1792.0,1791.9,4.2078]
[1743382929113,4.32396,1792.0,1791.9,1.0]
[1743382929429,1.11616,1792.0,1791.9,1.0]
[1743382929721,3.2078,1792.2,1791.9,1.0]
[1743382930026,1.7809,1792.1,1792.0,3.2078]
[1743382930236,1.7809,1792.1,1792.0,4.32396]
[1743382930523,3.2078,1792.9,1792.1,1.11609]
[1743382930723,4.9502,1792.9,1792.5,3.2078]
[1743382930922,11.95428,1792.9,1792.3,3.2078]
[1743382931224,4.9502,1792.9,1792.5,1.11581]
[1743382931419,4.9502,1792.9,1792.3,4.32373]
[1743382931731,1.11574,1792.7,1792.5,4.32362]
[1743382932320,1.1157,1792.8,1792.6,1.11577]
[1743382932515,1.7424,1792.8,1792.5,3.2078]
[1743382932721,2.85807,1792.8,1792.6,1.11574]
[1743382933030,2.85808,1792.8,1792.6,1.11574]
[1743382933216,2.85808,1792.8,1792.5,3.2078]
[1743382933415,2.85808,1792.8,1792.6,0.5584]
[1743382933622,1.11573,1792.7,1792.5,4.32362]
[1743382933925,1.7424,1792.8,1792.4,3.2078]
[1743382934226,3.2078,1792.7,1792.2,7.4218]
[1743382934426,1.7863,1792.6,1792.2,8.53781]
[1743382934625,1.11601,1792.3,1792.1,59.4818]
[1743382934824,1.7863,1792.6,1792.1,59.4818]
[1743382935127,3.2078,1792.2,1791.9,1.00837451]
[1743382935315,3.2078,1792.4,1791.9,1.00837451]
[1743382935521,1.7863,1792.3,1791.9,4.21617451]
[1743382935722,1.1161,1792.1,1791.9,5.33237451]
[1743382935921,1.11616,1792.0,1791.9,4.21617451]
[1743382936322,1.11594,1792.4,1791.9,4.21617451]
[1743382936526,1.11597,1792.3,1792.0,0.5584]
[1743382936731,1.11605,1792.2,1792.1,3.2078]
[1743382936932,4.57599,1792.5,1792.0,4.236]
[1743382937229,1.11601,1792.3,1792.0,4.32395]
[1743382937427,8.79803,1792.8,1792.0,4.32395]
[1743382937428,1.11576,1792.7,1792.2,3.2078]
[1743382937628,1.11576,1792.7,1792.5,1.11584]
[1743382937826,1.7879,1792.9,1792.3,4.32375]
[1743382938031,1.7879,1792.7,1792.3,3.2078]
[1743382938331,1.11581,1792.6,1792.3,3.2078]
[1743382938634,1.7879,1792.7,1792.3,4.32371]
[1743382938827,1.11578,1792.6,1792.3,4.32371]
[1743382939430,1.11578,1792.6,1792.4,1.11591]
[1743382939730,1.11585,1792.5,1792.3,3.2078]
[1743382940139,1.11585,1792.5,1792.3,4.32376]
[1743382940431,1.11585,1792.5,1792.3,3.2078]
[1743382940726,1.11591,1792.4,1792.3,3.2078]
[1743382941125,3.2078,1792.6,1791.9,6.35955451]
[1743382941126,1.11611,1792.1,1791.9,6.35955451]
[1743382941326,1.11611,1792.1,1792.0,3.2078]
[1743382941635,1.11616,1792.0,1791.9,4.21617451]
[1743382941821,2.97066,1792.0,1791.9,0.00837451]
[1743382942021,1.11659,1791.3,1791.2,3.2078]
[1743382942220,2.79096,1791.7,1791.2,3.2078]
[1743382942221,1.11655,1791.4,1791.2,3.2078]
[1743382942831,1.11655,1791.4,1791.2,4.32445]
[1743382943033,1.8545,1791.6,1791.2,3.2078]
[1743382943329,0.00837451,1791.5,1791.4,3.2078]
[1743382943731,0.00837451,1791.5,1791.4,4.32433]